bitfinex-derivatives/quotes_BTCF0:USTF0_20250709
["timestamp","ask_amount","ask_price","bid_price","bid_amount"]
[1752083607316,1.56942825,109230.0,109220.0,0.08077]
[1752083607507,1.60192825,109230.0,109220.0,0.0653]
[1752083607708,1.60192825,109230.0,109220.0,0.0345]
[1752083607908,1.63322825,109230.0,109220.0,0.0345]
[1752083608410,1.63322825,109230.0,109220.0,0.2330639]
[1752083609117,1.60192825,109230.0,109220.0,0.2330639]
[1752083610917,1.57865825,109230.0,109220.0,0.2330639]
[1752083611110,1.60192825,109230.0,109220.0,0.2636639]
[1752083611817,0.05184238,109230.0,109220.0,0.99474682]
[1752083612025,0.25124958,109230.0,109220.0,1.35554665]
[1752083612215,0.23491958,109230.0,109220.0,1.35554665]
[1752083612920,0.25124958,109230.0,109220.0,1.35554665]
[1752083613311,0.23491958,109230.0,109220.0,1.35554665]
[1752083614219,0.23491958,109230.0,109220.0,1.34554665]
[1752083614620,0.23491958,109230.0,109220.0,2.61090665]
[1752083615422,0.23491958,109230.0,109220.0,2.29394798]
[1752083615621,0.23491958,109230.0,109220.0,2.60090665]
[1752083616416,0.23491958,109230.0,109220.0,2.24010665]
[1752083616615,0.25124958,109230.0,109220.0,2.24010665]
[1752083616820,0.25124958,109230.0,109220.0,2.60090665]
[1752083617116,0.23491958,109230.0,109220.0,2.60090665]
[1752083618224,0.23491958,109230.0,109220.0,2.59017257]
[1752083619228,0.23491958,109230.0,109220.0,2.57017257]
[1752083619424,0.23491958,109230.0,109220.0,2.20937257]
[1752083619834,0.23491958,109230.0,109220.0,2.57017257]
[1752083622030,0.05184238,109230.0,109220.0,2.57017257]
[1752083622227,0.23491948,109230.0,109220.0,2.57017257]
[1752083623038,0.05184238,109230.0,109220.0,2.57017257]
[1752083624126,0.01759736,109230.0,109220.0,2.58017257]
[1752083625034,0.20067456,109230.0,109220.0,2.58017257]
[1752083625533,0.20067456,109230.0,109220.0,2.23017257]
[1752083625736,0.20067456,109230.0,109220.0,2.57017257]
[1752083626926,0.23503883,109230.0,109220.0,2.58090527]
[1752083627126,0.23503883,109230.0,109220.0,2.57017257]
[1752083628238,0.23503883,109230.0,109220.0,2.58090551]
[1752083629138,0.23503883,109230.0,109220.0,2.59090551]
[1752083630441,0.9279975,109230.0,109220.0,1.91314684]
[1752083630642,0.61103883,109230.0,109220.0,1.85835684]
[1752083631436,0.61103883,109230.0,109220.0,0.56892684]
[1752083631742,0.9581975,109230.0,109220.0,0.33497684]
[1752083632839,0.9581975,109230.0,109220.0,0.3242439]
[1752083634034,0.9581975,109230.0,109220.0,0.3483139]
[1752083634234,0.64123883,109230.0,109220.0,0.9595139]
[1752083634536,0.64123883,109230.0,109220.0,0.9193939]
[1752083634731,0.64123883,109230.0,109220.0,0.9354439]
[1752083635534,0.64123883,109230.0,109220.0,0.8954439]
[1752083635738,0.9581975,109230.0,109220.0,0.9354439]
[1752083637042,0.9581975,109230.0,109220.0,0.9595139]
[1752083637643,0.9581975,109230.0,109220.0,0.9352039]
[1752083637846,1.0145675,109230.0,109220.0,0.8885539]
[1752083638033,1.6454075,109230.0,109220.0,0.2431439]
[1752083638545,1.6454075,109230.0,109220.0,0.06005]
[1752083638841,1.6454075,109230.0,109220.0,0.2431439]
[1752083639041,1.6454075,109230.0,109220.0,0.07078429]
[1752083639242,1.6454075,109230.0,109220.0,0.22387819]
[1752083639442,1.6454075,109230.0,109220.0,0.04078429]
[1752083639645,1.7271941,109230.0,109220.0,0.03005]
[1752083640543,1.7270341,109230.0,109220.0,0.03005]
[1752083640739,2.0878341,109230.0,109220.0,0.03005]
[1752083640935,2.0878341,109230.0,109220.0,0.02005]
[1752083641843,2.0878341,109230.0,109220.0,0.004]
[1752083643741,2.4578341,109230.0,109220.0,0.004]
[1752083644046,2.0878341,109230.0,109220.0,0.004]
[1752083644243,2.3978341,109230.0,109220.0,0.004]
[1752083644647,2.0878341,109230.0,109220.0,0.004]
[1752083647339,2.0060475,109230.0,109220.0,0.004]
[1752083649449,2.3260475,109230.0,109220.0,0.004]
[1752083649646,2.64300617,109230.0,109220.0,0.004]
[1752083649849,2.32300617,109230.0,109220.0,0.004]
[1752083650146,2.0060475,109230.0,109220.0,0.004]
[1752083652453,1.9894875,109230.0,109220.0,0.004]
[1752083653550,2.67644617,109230.0,109220.0,0.004]
[1752083654253,2.61644617,109230.0,109220.0,0.004]
[1752083654452,2.64644617,109230.0,109220.0,0.004]
[1752083655648,2.66644617,109230.0,109220.0,0.004]
[1752083655854,2.64313617,109230.0,109220.0,0.004]
[1752083656153,2.66644617,109230.0,109220.0,0.004]
[1752083656545,1.9894875,109230.0,109220.0,0.004]
[1752083658749,1.3588075,109230.0,109220.0,0.2029139]
[1752083658953,1.58731883,109230.0,109220.0,0.2029139]
[1752083659252,1.58731883,109230.0,109220.0,0.2660139]
[1752083660559,1.9042775,109230.0,109220.0,0.2660139]
[1752083661950,1.9275875,109230.0,109220.0,0.2660139]
[1752083662859,1.9275875,109230.0,109220.0,0.08292]
[1752083663062,1.92761296,109230.0,109220.0,0.08292]
[1752083663353,1.61065429,109230.0,109220.0,0.08292]
[1752083663659,1.92761296,109230.0,109220.0,0.08292]
[1752083663852,1.95761296,109230.0,109220.0,0.08292]
[1752083665260,1.93430296,109230.0,109220.0,0.0671]
[1752083665463,1.95761296,109230.0,109220.0,0.0671]
[1752083666157,2.27457163,109230.0,109220.0,0.0367]
[1752083666465,2.61487163,109230.0,109220.0,0.004]
[1752083667162,2.69665823,109230.0,109220.0,0.004]
[1752083668165,2.61487163,109230.0,109220.0,0.004]
[1752083668864,2.59156163,109230.0,109220.0,0.004]
[1752083669065,2.61487163,109230.0,109220.0,0.004]
[1752083669565,2.71665823,109230.0,109220.0,0.004]
[1752083670561,2.73665823,109230.0,109220.0,0.004]
[1752083671263,2.65487163,109230.0,109220.0,0.004]
[1752083673460,2.73665823,109230.0,109220.0,0.004]
[1752083673956,2.83665823,109230.0,109220.0,0.004]
[1752083674155,3.11626122,109230.0,109220.0,1e-07]
[1752083674973,0.1831107,109210.0,109200.0,2.0]
[1752083675170,2.65703537,109210.0,109200.0,2.0]
[1752083675358,2.71973537,109210.0,109200.0,2.0]
[1752083675562,2.4027767,109210.0,109200.0,2.0]
[1752083676269,2.77073537,109210.0,109200.0,2.0]
[1752083677170,2.77273537,109210.0,109200.0,2.0]
[1752083677466,2.4557767,109210.0,109200.0,2.0]
[1752083678462,2.4391867,109210.0,109200.0,2.0]
[1752083678667,2.4620067,109210.0,109200.0,2.0]
[1752083678867,2.53521911,109210.0,109200.0,2.0]
[1752083679167,2.93415601,109210.0,109200.0,2.0]
[1752083679569,2.56415601,109210.0,109200.0,2.0]
[1752083679770,2.93415601,109210.0,109200.0,2.0]
[1752083680473,2.93415601,109210.0,109200.0,1.9721671]
[1752083680678,2.90415601,109210.0,109200.0,1.9137736]
[1752083680863,2.90415601,109210.0,109200.0,1.8501314]
[1752083681171,2.90415601,109210.0,109200.0,1.7617396]
[1752083681370,2.90415601,109210.0,109200.0,1.7187561]
[1752083681564,2.90415601,109210.0,109200.0,1.6709681]
[1752083681759,2.90415601,109210.0,109200.0,1.6351667]
[1752083681971,2.90415601,109210.0,109200.0,1.5943438]
[1752083682471,2.90415601,109210.0,109200.0,1.5484994]
[1752083682670,2.90415601,109210.0,109200.0,1.5042472]
[1752083683775,3.1788709,109210.0,109200.0,1.4728991]
[1752083684065,3.27262807,109210.0,109200.0,1.1821274]
[1752083684259,3.27262807,109210.0,109200.0,1.0807027]
[1752083684461,3.27262807,109210.0,109200.0,0.9090371]
[1752083684972,3.27262807,109210.0,109200.0,0.8073742]
[1752083685267,3.27262807,109210.0,109200.0,0.774931]
[1752083685675,3.28262807,109210.0,109200.0,0.7206711]
[1752083685973,3.28262807,109210.0,109200.0,0.6961952]
[1752083686174,3.28233574,109210.0,109200.0,0.6961952]
[1752083686776,3.20064984,109210.0,109200.0,0.6961952]
[1752083688176,3.28233628,109210.0,109200.0,0.6961952]
[1752083688779,3.20064984,109210.0,109200.0,0.6961952]
[1752083688978,3.28233536,109210.0,109200.0,0.6961952]
[1752083689274,2.0905418,109210.0,109200.0,0.6961952]
[1752083689474,1.43126463,109210.0,109200.0,0.7124652]
[1752083689674,1.74394596,109210.0,109200.0,0.8955929]
[1752083689877,1.74394596,109210.0,109200.0,0.2617977]
[1752083690179,1.66234044,109210.0,109200.0,0.2617977]
[1752083691078,1.97929911,109210.0,109200.0,0.2617977]
[1752083691574,1.66234044,109210.0,109200.0,0.2617977]
[1752083691781,1.97929911,109210.0,109200.0,0.2617977]
[1752083692776,1.97925911,109210.0,109200.0,0.2617977]
[1752083692975,1.74398596,109210.0,109200.0,0.2617977]
[1752083693174,1.74398596,109210.0,109200.0,0.2860877]
[1752083694080,1.11430596,109210.0,109200.0,0.2860877]
[1752083694282,1.30034044,109210.0,109200.0,0.2860877]
[1752083694574,1.61729911,109210.0,109200.0,0.10296]
[1752083695180,1.61529911,109210.0,109200.0,0.10296]
[1752083695877,1.61529911,109210.0,109200.0,0.0624]
[1752083696080,1.69698463,109210.0,109200.0,0.07867]
[1752083696879,1.61529911,109210.0,109200.0,0.07867]
[1752083697784,1.61629911,109210.0,109200.0,0.07867]
[1752083698284,1.69998463,109210.0,109200.0,0.07867]
[1752083699884,1.72280463,109210.0,109200.0,0.07867]
[1752083700086,1.69998463,109210.0,109200.0,0.07867]
[1752083700281,1.72280463,109210.0,109200.0,0.07867]
[1752083700678,1.69998463,109210.0,109200.0,0.07867]
[1752083700883,1.09328463,109210.0,109200.0,0.07867]
[1752083701082,1.72236463,109210.0,109200.0,0.07867]
[1752083705088,1.72236463,109210.0,109200.0,0.2617977]
[1752083705690,1.64067911,109210.0,109200.0,0.2617977]
[1752083706683,1.01159911,109210.0,109200.0,0.2617977]
[1752083706887,1.72218333,109210.0,109200.0,0.2617977]
[1752083707082,1.09350333,109210.0,109200.0,0.2617977]
[1752083707288,1.72218333,109210.0,109200.0,0.2617977]
[1752083707890,1.40522466,109210.0,109200.0,0.2617977]
[1752083708191,1.72218333,109210.0,109200.0,0.2617977]
[1752083708488,1.64027911,109210.0,109200.0,0.2617977]
[1752083708890,1.72222828,109210.0,109200.0,0.2617977]
[1752083709091,1.64027911,109210.0,109200.0,0.2617977]
[1752083709792,1.01159911,109210.0,109200.0,0.2617977]
[1752083710091,1.30923976,109210.0,109200.0,0.96143637]
[1752083711089,1.30823976,109210.0,109200.0,0.92143637]
[1752083711292,1.30880291,109210.0,109200.0,0.92143637]
[1752083711486,1.30680291,109210.0,109200.0,0.92143637]
[1752083711887,1.28949531,109210.0,109200.0,0.92143637]
[1752083712489,1.28949531,109210.0,109200.0,0.94143637]
[1752083712694,1.52450225,109210.0,109200.0,0.3244777]
[1752083713496,1.52450225,109210.0,109200.0,0.2855277]
[1752083713701,1.54886225,109210.0,109200.0,0.3015977]
[1752083713898,1.90966225,109210.0,109200.0,0.3015977]
[1752083714102,1.88530225,109210.0,109200.0,0.3015977]
[1752083714497,1.88530225,109210.0,109200.0,0.2715977]
[1752083714702,1.88730225,109210.0,109200.0,0.2715977]
[1752083715696,1.88830225,109210.0,109200.0,0.2715977]
[1752083716902,1.52750225,109210.0,109200.0,0.2715977]
[1752083717303,0.89882225,109210.0,109200.0,0.2944777]
[1752083717505,1.21050358,109210.0,109200.0,0.98143637]
[1752083718902,1.20750358,109210.0,109200.0,0.98143637]
[1752083719102,1.20750358,109210.0,109200.0,0.93143637]
[1752083719604,1.28945531,109210.0,109200.0,0.93143637]
[1752083720002,1.28945531,109210.0,109200.0,0.93343637]
[1752083720605,1.28945531,109210.0,109200.0,0.92143637]
[1752083720806,1.28945531,109210.0,109200.0,0.92343637]
[1752083721703,1.28945531,109210.0,109200.0,0.92143637]
[1752083723105,1.60641398,109210.0,109200.0,0.66143637]
[1752083723302,1.60641398,109210.0,109200.0,0.3444777]
[1752083723504,1.28945531,109210.0,109200.0,0.3444777]
[1752083724013,0.66081531,109210.0,109200.0,0.3444777]
[1752083724305,0.67646531,109210.0,109200.0,0.3544777]
[1752083724506,0.99342398,109210.0,109200.0,0.3544777]
[1752083726205,0.99342398,109210.0,109200.0,0.6644777]
[1752083726608,0.99342398,109210.0,109200.0,0.98143637]
[1752083726609,0.67646531,109210.0,109200.0,0.98143637]
[1752083727811,0.67646531,109210.0,109200.0,0.64855637]
[1752083728008,0.67646531,109210.0,109200.0,0.3315977]
[1752083728402,0.99342398,109210.0,109200.0,0.3315977]
[1752083729311,1.62202398,109210.0,109200.0,0.3215977]
[1752083729606,1.62202398,109210.0,109200.0,0.2615977]
[1752083729805,1.60637398,109210.0,109200.0,0.6415977]
[1752083730003,1.28941531,109210.0,109200.0,0.6415977]
[1752083730612,1.28941531,109210.0,109200.0,0.6015977]
[1752083731705,1.28941531,109210.0,109200.0,0.6244777]
[1752083734007,1.28941531,109210.0,109200.0,0.6015977]
[1752083734210,1.28941531,109210.0,109200.0,0.6215977]
[1752083735310,1.20746358,109210.0,109200.0,0.6215977]
[1752083735704,1.20746358,109210.0,109200.0,0.5815977]
[1752083736415,1.20746358,109210.0,109200.0,0.69143637]
[1752083736616,1.20746358,109210.0,109200.0,0.92143637]
[1752083737611,0.57886358,109210.0,109200.0,0.92143637]
[1752083737812,1.22342358,109210.0,109200.0,0.92143637]
[1752083738011,1.20746358,109210.0,109200.0,0.92143637]
[1752083739515,1.20746358,109210.0,109200.0,0.91143637]
[1752083740515,1.20746358,109210.0,109200.0,0.60143637]
[1752083740713,1.20746358,109210.0,109200.0,0.92143637]
[1752083743521,1.20746358,109210.0,109200.0,0.89855637]
[1752083743821,1.23806358,109210.0,109200.0,0.89855637]
[1752083745522,1.23806358,109210.0,109200.0,0.57855637]
[1752083745722,1.23806358,109210.0,109200.0,0.89855637]
[1752083746025,1.23806358,109210.0,109200.0,0.92233637]
[1752083747227,1.23806358,109210.0,109200.0,0.2853777]
[1752083747427,1.23806358,109210.0,109200.0,0.94233637]
[1752083749125,1.23806358,109210.0,109200.0,0.95233637]
[1752083749929,1.57993225,109210.0,109200.0,0.3014777]
[1752083750227,1.61053225,109210.0,109200.0,0.2531277]
[1752083751031,1.61153225,109210.0,109200.0,0.2195777]
[1752083751725,1.61053225,109210.0,109200.0,0.5195777]
[1752083751926,1.61053225,109210.0,109200.0,0.2522777]
[1752083752126,1.29357358,109210.0,109200.0,0.2522777]
[1752083754833,1.29547845,109210.0,109200.0,0.2522777]
[1752083755336,1.29347845,109210.0,109200.0,0.2522777]
[1752083755534,1.29347845,109210.0,109200.0,0.2322777]
[1752083755734,1.29347845,109210.0,109200.0,0.91923637]
[1752083760531,1.29347845,109210.0,109200.0,0.54923637]
[1752083760736,1.29347845,109210.0,109200.0,0.56923637]
[1752083760938,1.29347845,109210.0,109200.0,0.89923637]
[1752083761336,1.97123712,109210.0,109200.0,0.0527]
[1752083761544,1.97123712,109210.0,109200.0,0.2031277]
[1752083762538,1.97323712,109210.0,109200.0,0.2031277]
[1752083764142,1.97323712,109210.0,109200.0,0.2195777]
[1752083764742,1.65627845,109210.0,109200.0,0.2195777]
[1752083765141,1.65727845,109210.0,109200.0,0.2031277]
[1752083765344,1.65727845,109210.0,109200.0,0.2195777]
[1752083766047,1.97423712,109210.0,109200.0,0.2195777]
[1752083766936,1.99147396,109210.0,109200.0,0.2031277]
[1752083767241,2.07342569,109210.0,109200.0,0.1831277]
[1752083768346,1.99147396,109210.0,109200.0,0.1991577]
[1752083768546,1.67451529,109210.0,109200.0,0.51611637]
[1752083768746,1.67451529,109210.0,109200.0,0.2299577]
[1752083769640,1.75646702,109210.0,109200.0,0.2299577]
[1752083769946,1.67451529,109210.0,109200.0,0.2299577]
[1752083770436,1.99147396,109210.0,109200.0,0.2299577]
[1752083771148,1.99145253,109210.0,109200.0,0.2299577]
[1752083771646,1.67449386,109210.0,109200.0,0.2299577]
[1752083771848,1.61894386,109210.0,109200.0,0.54691637]
[1752083772041,1.61894386,109210.0,109200.0,0.57821637]
[1752083772348,1.22754386,109210.0,109200.0,0.97115637]
[1752083773347,1.22754386,109210.0,109200.0,0.94821637]
[1752083773550,1.22754386,109210.0,109200.0,0.2612577]
[1752083773740,1.22754386,109210.0,109200.0,0.93821637]
[1752083773940,1.22554386,109210.0,109200.0,0.93821637]
[1752083775545,1.22554386,109210.0,109200.0,0.89821637]
[1752083776655,1.54150253,109210.0,109200.0,0.2912577]
[1752083776854,1.64745323,109210.0,109200.0,0.2912577]
[1752083777152,1.33049456,109210.0,109200.0,0.2912577]
[1752083777346,1.24854283,109210.0,109200.0,0.2912577]
[1752083778453,1.27924283,109210.0,109200.0,0.2912577]
[1752083778951,1.5962015,109210.0,109200.0,0.2912577]
[1752083779253,1.5962015,109210.0,109200.0,0.3312577]
[1752083779450,1.27924283,109210.0,109200.0,0.3312577]
[1752083780152,1.27924283,109210.0,109200.0,0.64821637]
[1752083780552,1.27924283,109210.0,109200.0,0.81821637]
[1752083780954,1.27924283,109210.0,109200.0,0.5012577]
[1752083781152,1.27924283,109210.0,109200.0,0.81821637]
[1752083781453,1.25524283,109210.0,109200.0,0.5012577]
[1752083781651,1.25524283,109210.0,109200.0,0.81821637]
[1752083782553,1.22040754,109210.0,109200.0,0.81821637]
[1752083782754,1.25524526,109210.0,109200.0,0.81821637]
[1752083784554,1.25524526,109210.0,109200.0,0.5012577]
[1752083784955,1.27924526,109210.0,109200.0,0.5012577]
[1752083785154,1.27924526,109210.0,109200.0,0.4712577]
[1752083785552,1.59620393,109210.0,109200.0,0.4712577]
[1752083786150,1.59620393,109210.0,109200.0,0.5212577]
[1752083787360,1.57220393,109210.0,109200.0,0.5212577]
[1752083787551,1.25524526,109210.0,109200.0,0.5212577]
[1752083788464,1.25524435,109210.0,109200.0,0.5212577]
[1752083789162,1.22454435,109210.0,109200.0,0.83821637]
[1752083789658,1.22454435,109210.0,109200.0,0.5441977]
[1752083789864,1.22454435,109210.0,109200.0,0.97115637]
[1752083790254,0.05207365,109210.0,109200.0,2.90599504]
[1752083790654,0.05207365,109210.0,109200.0,2.85599504]
[1752083791257,0.05207365,109210.0,109200.0,2.85799504]
[1752083791669,0.05207365,109210.0,109200.0,2.85999504]
[1752083791959,0.05207365,109210.0,109200.0,2.85799504]
[1752083792162,0.05207365,109210.0,109200.0,2.86099504]
[1752083793060,0.05207365,109210.0,109200.0,2.85899504]
[1752083793363,0.05207365,109210.0,109200.0,2.86299504]
[1752083794364,0.05207365,109210.0,109200.0,2.85299504]
[1752083795461,0.01723684,109210.0,109200.0,2.85299504]
[1752083795663,0.01723684,109210.0,109200.0,2.86299504]
[1752083797365,0.05201955,109210.0,109200.0,2.86299504]
[1752083797566,0.01723684,109210.0,109200.0,2.86299504]
[1752083797859,0.05200964,109210.0,109200.0,2.86299504]
[1752083798061,0.23512054,109210.0,109200.0,2.54603637]
[1752083798263,0.23512054,109210.0,109200.0,0.92815637]
[1752083798264,0.21684774,109210.0,109200.0,0.92815637]
[1752083798566,0.25161587,109210.0,109200.0,1.2396777]
[1752083798863,0.23511587,109210.0,109200.0,1.2396777]
[1752083799171,0.25161587,109210.0,109200.0,1.55663637]
[1752083799364,0.25161587,109210.0,109200.0,1.91743637]
[1752083799565,0.25161587,109210.0,109200.0,1.91443637]
[1752083799766,0.25161587,109210.0,109200.0,1.55363637]
[1752083800167,0.25161587,109210.0,109200.0,1.55163637]
[1752083800467,0.25161587,109210.0,109200.0,1.54963637]
[1752083800770,0.25161587,109210.0,109200.0,1.59963637]
[1752083805272,0.25161587,109210.0,109200.0,1.96043637]
[1752083805475,0.25161587,109210.0,109200.0,1.59963637]
[1752083805661,0.05200497,109210.0,109200.0,1.91659504]
[1752083805864,0.05200497,109210.0,109200.0,2.27739504]
[1752083806070,0.05200497,109210.0,109200.0,1.96043637]
[1752083806271,0.05200497,109210.0,109200.0,1.94043637]
[1752083806470,0.05200497,109210.0,109200.0,2.25739504]
[1752083806868,0.05200497,109210.0,109200.0,2.25939504]
[1752083807371,0.05200497,109210.0,109200.0,2.26139504]
[1752083809170,0.01723684,109210.0,109200.0,2.26139504]
[1752083809867,0.23502592,109210.0,109200.0,1.58363637]
[1752083810074,0.23502592,109210.0,109200.0,1.92443637]
[1752083810268,0.23502592,109210.0,109200.0,1.56363637]
[1752083810572,0.25152592,109210.0,109200.0,1.56363637]
[1752083810968,0.25152592,109210.0,109200.0,1.23363637]
[1752083811169,0.25152592,109210.0,109200.0,0.92515637]
[1752083811373,0.25152592,109210.0,109200.0,1.49935637]
[1752083811573,0.28362592,109210.0,109200.0,1.52189637]
[1752083812174,0.28362592,109210.0,109200.0,1.51989637]
[1752083812368,0.28362592,109210.0,109200.0,1.52189637]
[1752083812569,0.64442592,109210.0,109200.0,1.52189637]
[1752083812767,0.28362592,109210.0,109200.0,1.52189637]
[1752083812973,0.28362592,109210.0,109200.0,1.51789637]
[1752083814475,0.28362592,109210.0,109200.0,1.54989637]
[1752083814674,0.28362592,109210.0,109200.0,1.53989637]
[1752083815169,0.28362592,109210.0,109200.0,0.5399577]
[1752083815376,0.96138459,109210.0,109200.0,0.5091577]
[1752083815566,1.01597459,109210.0,109200.0,0.4591577]
[1752083815963,1.64437459,109210.0,109200.0,0.4591577]
[1752083816469,1.64737459,109210.0,109200.0,0.4591577]
[1752083819076,1.64737459,109210.0,109200.0,0.3991577]
[1752083820075,1.30662592,109210.0,109200.0,0.71611637]
[1752083820271,0.94582592,109210.0,109200.0,0.71611637]
[1752083820672,0.31742592,109210.0,109200.0,0.76611637]
[1752083820875,0.94586592,109210.0,109200.0,0.78865637]
[1752083821079,0.94589915,109210.0,109200.0,0.82165637]
[1752083821279,1.30669915,109210.0,109200.0,0.82165637]
[1752083821779,1.30569915,109210.0,109200.0,0.82165637]
[1752083822079,1.30369915,109210.0,109200.0,0.82165637]
[1752083824180,0.67525915,109210.0,109200.0,0.95165637]
[1752083825478,0.28365915,109210.0,109200.0,0.98425637]
[1752083825680,0.28365915,109210.0,109200.0,0.91425637]
[1752083826572,0.64445915,109210.0,109200.0,0.91425637]
[1752083829080,0.64445915,109210.0,109200.0,0.60425637]
[1752083829286,0.64445915,109210.0,109200.0,0.97425637]
[1752083830794,0.64445915,109210.0,109200.0,0.91425637]
[1752083833496,0.03471281,109210.0,109200.0,1.59201504]
[1752083834183,0.03471281,109210.0,109200.0,1.63201504]
[1752083834693,0.03471281,109210.0,109200.0,1.63401504]
[1752083834899,0.03471281,109210.0,109200.0,1.6341172]
[1752083835580,0.03471281,109210.0,109200.0,1.6441172]
[1752083835785,0.03471281,109210.0,109200.0,1.6461172]
[1752083836908,0.03471281,109210.0,109200.0,1.64611746]
[1752083837709,0.03471281,109210.0,109200.0,1.64811746]
[1752083838211,0.03471281,109210.0,109200.0,1.64611746]
[1752083838510,0.03471281,109210.0,109200.0,1.64911746]
[1752083839110,0.03471281,109210.0,109200.0,1.61911746]
[1752083842212,0.2746539,109220.0,109210.0,0.1831094]
[1752083842408,0.3091628,109220.0,109210.0,1.53956928]
[1752083842603,0.3251828,109220.0,109210.0,1.56394928]
[1752083842801,0.2794084,109220.0,109210.0,1.56394928]
[1752083843310,0.0345089,109220.0,109210.0,1.56594928]
[1752083843614,0.0345089,109220.0,109210.0,1.92674928]
[1752083844115,0.0345089,109220.0,109210.0,1.97674928]
[1752083844815,0.0345089,109220.0,109210.0,1.97874928]
[1752083845516,0.0345089,109220.0,109210.0,1.60801593]
[1752083845716,0.0345089,109220.0,109210.0,1.95801593]
[1752083846918,0.0345089,109220.0,109210.0,2.02962317]
[1752083849213,0.0345089,109220.0,109210.0,2.04962317]
[1752083851124,0.0345089,109220.0,109210.0,2.03962317]
[1752083854626,0.0345089,109220.0,109210.0,2.05962317]
[1752083855526,0.0345089,109220.0,109210.0,1.67962317]
[1752083855727,0.0345089,109220.0,109210.0,2.03962317]
[1752083858922,0.0345089,109220.0,109210.0,2.35647559]
[1752083859324,0.0345089,109220.0,109210.0,2.37647559]
[1752083860534,0.0345089,109220.0,109210.0,1.99647559]
[1752083860733,0.0345089,109220.0,109210.0,2.30647559]
[1752083862336,0.0345089,109220.0,109210.0,2.60107559]
[1752083864432,0.0345089,109220.0,109210.0,2.61524122]
[1752083865536,0.0345089,109220.0,109210.0,2.30524122]
[1752083865836,0.0345089,109220.0,109210.0,2.68524122]
[1752083870140,0.08195173,109230.0,109210.0,2.68524122]
[1752083870342,0.08195173,109230.0,109220.0,0.8795551]
[1752083870554,0.08195173,109230.0,109220.0,1.31168073]
[1752083871355,0.82656447,109240.0,109230.0,0.183076]
[1752083871555,0.876849,109240.0,109230.0,2.14554278]
[1752083871753,0.876849,109240.0,109230.0,2.16817278]
[1752083872055,0.876849,109240.0,109230.0,2.14554278]
[1752083872454,0.876849,109240.0,109230.0,2.16817278]
[1752083872653,0.876849,109240.0,109230.0,2.14554278]
[1752083872958,0.878849,109240.0,109230.0,2.16817278]
[1752083873257,0.878849,109240.0,109230.0,2.16817418]
[1752083874358,1.19578015,109240.0,109230.0,2.16817418]
[1752083875060,1.19578015,109240.0,109230.0,2.17817418]
[1752083875362,1.19678015,109240.0,109230.0,2.17817418]
[1752083876160,1.11482842,109240.0,109230.0,2.17817418]
[1752083876562,0.79789727,109240.0,109230.0,2.17817418]
[1752083876862,1.11482842,109240.0,109230.0,2.18817418]
[1752083879266,1.11482842,109240.0,109230.0,1.87124303]
[1752083879562,1.11482842,109240.0,109230.0,2.18817418]
[1752083880364,1.11482842,109240.0,109230.0,2.13817418]
[1752083880564,1.11282842,109240.0,109230.0,2.13817418]
[1752083880865,0.79589727,109240.0,109230.0,2.13817418]
[1752083881058,1.11282842,109240.0,109230.0,2.13817418]
[1752083881254,0.34355947,109240.0,109230.0,2.13817418]
[1752083881564,0.03553147,109240.0,109230.0,2.84590533]
[1752083881752,0.03453147,109240.0,109230.0,2.90680533]
[1752083882263,0.00013694,109240.0,109230.0,2.90680533]
[1752083882464,0.0329,109250.0,109240.0,0.1830592]
[1752083882760,0.3373688,109270.0,109260.0,0.1830257]
[1752083882950,0.81153411,109270.0,109260.0,1.18105503]
[1752083883157,0.45073411,109270.0,109260.0,1.18105503]
[1752083883457,1.12846526,109270.0,109260.0,1.18105503]
[1752083883658,1.12846526,109270.0,109260.0,0.86412388]
[1752083884464,1.12846526,109270.0,109260.0,0.87945388]
[1752083884859,0.81153411,109270.0,109260.0,0.52929523]
[1752083885064,0.81153411,109270.0,109260.0,0.90929523]
[1752083885264,0.88391172,109270.0,109260.0,0.90929523]
[1752083885461,0.88691172,109270.0,109260.0,0.90929523]
[1752083886153,0.88691172,109270.0,109260.0,0.59252273]
[1752083886465,0.8959884,109270.0,109260.0,0.5783557]
[1752083887166,0.82361079,109270.0,109260.0,0.5783557]
[1752083887464,0.82053411,109270.0,109260.0,0.5793557]
[1752083887966,0.82053411,109270.0,109260.0,0.8961282]
[1752083888761,0.82053411,109270.0,109260.0,0.9199182]
[1752083888762,1.44833411,109270.0,109260.0,0.9199182]
[1752083889160,0.82053411,109270.0,109260.0,0.9199182]
[1752083889465,1.44833411,109270.0,109260.0,0.9099182]
[1752083889666,1.44833411,109270.0,109260.0,0.8861282]
[1752083890570,1.44833411,109270.0,109260.0,0.8561282]
[1752083890869,1.44833411,109270.0,109260.0,0.1993557]
[1752083891071,1.44833411,109270.0,109260.0,0.5161282]
[1752083892971,1.44833411,109270.0,109260.0,0.1993557]
[1752083896073,1.44833411,109270.0,109260.0,0.5161282]
[1752083899072,1.47329411,109270.0,109260.0,0.5161282]
[1752083899571,1.47329411,109270.0,109260.0,0.5473282]
[1752083900270,1.16226661,109270.0,109260.0,0.01633]
[1752083900469,1.78994661,109270.0,109260.0,0.001]
[1752083902478,1.88994661,109270.0,109260.0,0.001]
[1752083903777,1.78994661,109270.0,109260.0,0.001]
[1752083905579,1.55512584,109270.0,109260.0,0.001]
[1752083905778,1.87189834,109270.0,109260.0,0.001]
[1752083905973,1.78994661,109270.0,109260.0,0.001]
[1752083906375,1.87189834,109270.0,109260.0,0.001]
[1752083906880,1.87196572,109270.0,109260.0,0.001]
[1752083907374,1.55512584,109270.0,109260.0,0.001]
[1752083907576,1.87196572,109270.0,109260.0,0.001]
[1752083909081,1.79001399,109270.0,109260.0,0.001]
[1752083910779,1.87210934,109270.0,109260.0,0.001]
[1752083910982,1.79001399,109270.0,109260.0,0.001]
[1752083916287,1.47317411,109270.0,109260.0,0.001]
[1752083916584,1.79001399,109270.0,109260.0,0.001]
[1752083917088,1.87216892,109270.0,109260.0,0.001]
[1752083919396,1.87216892,109270.0,109260.0,0.50086568]
[1752083919584,1.52312904,109270.0,109260.0,0.54992568]
[1752083919784,1.83996892,109270.0,109260.0,0.58142568]
[1752083930395,1.21228892,109270.0,109260.0,0.58142568]
[1752083930591,1.83960892,109270.0,109260.0,0.59142568]
[1752083931886,1.83960892,109270.0,109260.0,0.2745858]
[1752083932087,1.83960892,109270.0,109260.0,0.59142568]
[1752083934095,1.83960892,109270.0,109260.0,0.58142568]
[1752083934296,1.83960892,109270.0,109260.0,0.59142568]
[1752083935597,1.83960892,109270.0,109260.0,0.58142568]
[1752083936498,1.21228892,109270.0,109260.0,0.58142568]
[1752083936805,1.83952892,109270.0,109260.0,0.2645858]
[1752083938301,1.83931139,109270.0,109260.0,0.2645858]
[1752083940103,1.09575868,109270.0,109260.0,0.2645858]
[1752083940309,1.72295868,109270.0,109260.0,0.2645858]
[1752083943015,1.72295868,109270.0,109260.0,0.2486258]
[1752083943718,2.08375868,109270.0,109260.0,0.2486258]